[Event "*** Titled Tuesday Blitz"]
[Site "Chess.com"]
[Date "2020.11.03"]
[Round "5"]
[White "enriquetejedor"]
[Black "NikolaGry"]
[Result "1/2-1/2"]
[WhiteElo "2485"]
[BlackElo "2626"]
[TimeControl "180+1"]
[EndTime "11:02:47 PST"]
[Termination "Game drawn by 50-move rule"]

1. e4 {[%clk 0:03:00.9]} 1... e5 {[%clk 0:02:59.8]} 2. Nf3 {[%clk 0:03:00.6]}
2... d6 {[%clk 0:03:00.1]} 3. d4 {[%clk 0:03:00.7]} 3... exd4 {[%clk 0:03:00.5]}
4. Nxd4 {[%clk 0:03:01.6]} 4... Nf6 {[%clk 0:03:00.7]} 5. Nc3 {[%clk 0:03:02.1]}
5... g6 {[%clk 0:03:00.9]} 6. g3 {[%clk 0:02:47.3]} 6... Bg7 {[%clk 0:03:00.9]}
7. Bg2 {[%clk 0:02:46.6]} 7... O-O {[%clk 0:03:00.6]} 8. O-O {[%clk 0:02:46.9]}
8... Bd7 {[%clk 0:02:52.5]} 9. h3 {[%clk 0:02:33.9]} 9... Nc6 {[%clk 0:02:51.5]}
10. Nb3 {[%clk 0:02:10.5]} 10... a5 {[%clk 0:02:43.4]} 11. a4 {[%clk 0:01:41.6]}
11... Re8 {[%clk 0:02:41.4]} 12. Re1 {[%clk 0:01:30.7]} 12... Ne5 {[%clk
0:02:33.9]} 13. f4 {[%clk 0:01:24]} 13... Nc4 {[%clk 0:02:33.3]} 14. Nd4 {[%clk
0:00:58.7]} 14... Qc8 {[%clk 0:02:13.4]} 15. Kh2 {[%clk 0:00:57.5]} 15... h5
{[%clk 0:02:10.3]} 16. b3 {[%clk 0:00:55.5]} 16... Nb6 {[%clk 0:02:08.1]} 17.
Be3 {[%clk 0:00:45.9]} 17... h4 {[%clk 0:02:05]} 18. g4 {[%clk 0:00:42.2]} 18...
Bxg4 {[%clk 0:01:24]} 19. hxg4 {[%clk 0:00:25.6]} 19... Nxg4+ {[%clk 0:01:24]}
20. Kh1 {[%clk 0:00:07.7]} 20... Nxe3 {[%clk 0:01:24.4]} 21. Rxe3 {[%clk
0:00:07.6]} 21... d5 {[%clk 0:01:25]} 22. e5 {[%clk 0:00:07]} 22... c5 {[%clk
0:01:25]} 23. Ndb5 {[%clk 0:00:05.5]} 23... d4 {[%clk 0:01:20.7]} 24. Nd6 {[%clk
0:00:05.6]} 24... Qe6 {[%clk 0:01:08.7]} 25. Rh3 {[%clk 0:00:03.5]} 25... dxc3
{[%clk 0:01:04.2]} 26. Nxe8 {[%clk 0:00:03.3]} 26... Rxe8 {[%clk 0:01:03.6]} 27.
Qe1 {[%clk 0:00:02.6]} 27... Qf5 {[%clk 0:00:46.1]} 28. Qxh4 {[%clk 0:00:02.2]}
28... Qxc2 {[%clk 0:00:45.6]} 29. Qh7+ {[%clk 0:00:01.4]} 29... Kf8 {[%clk
0:00:45.7]} 30. f5 {[%clk 0:00:01.7]} 30... Qxf5 {[%clk 0:00:35.4]} 31. Rf1
{[%clk 0:00:01.9]} 31... Qxf1+ {[%clk 0:00:35.5]} 32. Bxf1 {[%clk 0:00:01.5]}
32... c2 {[%clk 0:00:35.8]} 33. Rc3 {[%clk 0:00:01.9]} 33... Rxe5 {[%clk
0:00:36.1]} 34. Qh2 {[%clk 0:00:01.8]} 34... Rh5 {[%clk 0:00:32.3]} 35. Qxh5
{[%clk 0:00:01.9]} 35... gxh5 {[%clk 0:00:31.3]} 36. Rxc2 {[%clk 0:00:02.3]}
36... Bd4 {[%clk 0:00:31.5]} 37. Be2 {[%clk 0:00:02.2]} 37... h4 {[%clk
0:00:31.3]} 38. Bf3 {[%clk 0:00:02.8]} 38... Ke7 {[%clk 0:00:28.1]} 39. Bxb7
{[%clk 0:00:03]} 39... Nd7 {[%clk 0:00:24.8]} 40. Kg2 {[%clk 0:00:03]} 40... Kf6
{[%clk 0:00:23.6]} 41. Kh3 {[%clk 0:00:03.2]} 41... Ne5 {[%clk 0:00:17]} 42.
Kxh4 {[%clk 0:00:03]} 42... Nd3 {[%clk 0:00:17.2]} 43. Rd2 {[%clk 0:00:02.2]}
43... Ne5 {[%clk 0:00:16.2]} 44. Bd5 {[%clk 0:00:01.8]} 44... Ke7 {[%clk
0:00:15.7]} 45. Re2 {[%clk 0:00:02.1]} 45... Kd6 {[%clk 0:00:15.6]} 46. Bg2
{[%clk 0:00:02.3]} 46... Ke6 {[%clk 0:00:14.1]} 47. Kg5 {[%clk 0:00:02.3]} 47...
f6+ {[%clk 0:00:14]} 48. Kf4 {[%clk 0:00:02.8]} 48... Kd6 {[%clk 0:00:10.2]} 49.
Bh3 {[%clk 0:00:03.2]} 49... c4 {[%clk 0:00:09]} 50. bxc4 {[%clk 0:00:03.2]}
50... Nxc4 {[%clk 0:00:09.1]} 51. Re4 {[%clk 0:00:03.5]} 51... Kc5 {[%clk
0:00:09.1]} 52. Re2 {[%clk 0:00:02.7]} 52... Be5+ {[%clk 0:00:09.1]} 53. Kf5
{[%clk 0:00:02.6]} 53... Kb4 {[%clk 0:00:08.9]} 54. Re4 {[%clk 0:00:02.8]} 54...
Kb3 {[%clk 0:00:07.8]} 55. Rh4 {[%clk 0:00:02.5]} 55... Nb6 {[%clk 0:00:06.4]}
56. Bg4 {[%clk 0:00:02.6]} 56... Ka3 {[%clk 0:00:04.8]} 57. Bd1 {[%clk
0:00:02.6]} 57... Nc8 {[%clk 0:00:04.4]} 58. Ke6 {[%clk 0:00:02.9]} 58... Nd6
{[%clk 0:00:04.3]} 59. Kd5 {[%clk 0:00:03.4]} 59... Nf5 {[%clk 0:00:04.2]} 60.
Rh3+ {[%clk 0:00:03.9]} 60... Kb4 {[%clk 0:00:02.6]} 61. Bg4 {[%clk 0:00:03.7]}
61... Ne7+ {[%clk 0:00:02]} 62. Ke6 {[%clk 0:00:03.5]} 62... Ng6 {[%clk
0:00:02.2]} 63. Rh1 {[%clk 0:00:02.9]} 63... Nf4+ {[%clk 0:00:02.3]} 64. Kf5
{[%clk 0:00:02.6]} 64... Kxa4 {[%clk 0:00:03.2]} 65. Rb1 {[%clk 0:00:02.2]}
65... Ka3 {[%clk 0:00:03]} 66. Ke4 {[%clk 0:00:02.7]} 66... a4 {[%clk
0:00:03.3]} 67. Bd7 {[%clk 0:00:03.1]} 67... Ka2 {[%clk 0:00:03.4]} 68. Rb7
{[%clk 0:00:02.4]} 68... a3 {[%clk 0:00:03.4]} 69. Be8 {[%clk 0:00:02.4]} 69...
Ka1 {[%clk 0:00:03.6]} 70. Bf7 {[%clk 0:00:02.6]} 70... Ne2 {[%clk 0:00:02.7]}
71. Rb3 {[%clk 0:00:02.1]} 71... Bb2 {[%clk 0:00:02.8]} 72. Ke3 {[%clk
0:00:01.7]} 72... Nc1 {[%clk 0:00:02.7]} 73. Rb7 {[%clk 0:00:01.8]} 73... f5
{[%clk 0:00:03.1]} 74. Kf4 {[%clk 0:00:01.9]} 74... a2 {[%clk 0:00:02.6]} 75.
Kxf5 {[%clk 0:00:02.2]} 75... Kb1 {[%clk 0:00:02.9]} 76. Bxa2+ {[%clk
0:00:02.4]} 76... Kxa2 {[%clk 0:00:03.3]} 77. Ke4 {[%clk 0:00:02.7]} 77... Ba3
{[%clk 0:00:04.2]} 78. Ra7 {[%clk 0:00:02.9]} 78... Nb3 {[%clk 0:00:05.1]} 79.
Kd3 {[%clk 0:00:03]} 79... Na1 {[%clk 0:00:06]} 80. Kc3 {[%clk 0:00:03]} 80...
Nb3 {[%clk 0:00:06.9]} 81. Rb7 {[%clk 0:00:02.5]} 81... Na1 {[%clk 0:00:07.8]}
82. Rb8 {[%clk 0:00:03]} 82... Bc1 {[%clk 0:00:08.7]} 83. Ra8+ {[%clk
0:00:02.8]} 83... Ba3 {[%clk 0:00:09.6]} 84. Ra7 {[%clk 0:00:03.1]} 84... Nb3
{[%clk 0:00:10.5]} 85. Rb7 {[%clk 0:00:03.5]} 85... Na1 {[%clk 0:00:11.1]} 86.
Rb5 {[%clk 0:00:03.6]} 86... Bc1 {[%clk 0:00:10.2]} 87. Ra5+ {[%clk 0:00:04.1]}
87... Ba3 {[%clk 0:00:10.7]} 88. Ra4 {[%clk 0:00:05]} 88... Nb3 {[%clk
0:00:09.9]} 89. Rh4 {[%clk 0:00:05.3]} 89... Bb2+ {[%clk 0:00:09.5]} 90. Kc2
{[%clk 0:00:05.8]} 90... Na1+ {[%clk 0:00:09.5]} 91. Kd2 {[%clk 0:00:05.5]}
91... Nb3+ {[%clk 0:00:09.8]} 92. Kc2 {[%clk 0:00:06]} 92... Na1+ {[%clk
0:00:10.7]} 93. Kd3 {[%clk 0:00:06.6]} 93... Nb3 {[%clk 0:00:10.2]} 94. Ra4+
{[%clk 0:00:06.9]} 94... Ba3 {[%clk 0:00:10.1]} 95. Kc3 {[%clk 0:00:07.2]} 95...
Nc1 {[%clk 0:00:10.1]} 96. Kc2 {[%clk 0:00:07.1]} 96... Ne2 {[%clk 0:00:10.1]}
97. Re4 {[%clk 0:00:06.8]} 97... Nc1 {[%clk 0:00:09.6]} 98. Re3 {[%clk
0:00:03.9]} 98... Bb2 {[%clk 0:00:08.2]} 99. Re7 {[%clk 0:00:02.7]} 99... Ba3
{[%clk 0:00:08.3]} 100. Rb7 {[%clk 0:00:02.3]} 100... Ne2 {[%clk 0:00:07.3]}
101. Rd7 {[%clk 0:00:02.5]} 101... Nc1 {[%clk 0:00:07]} 102. Rd8 {[%clk
0:00:01.6]} 102... Ne2 {[%clk 0:00:06.8]} 103. Rd2 {[%clk 0:00:01.8]} 103... Nf4
{[%clk 0:00:05.1]} 104. Rf2 {[%clk 0:00:01.8]} 104... Nd5 {[%clk 0:00:04.7]}
105. Kd3+ {[%clk 0:00:02.2]} 105... Kb1 {[%clk 0:00:04.8]} 106. Kd4 {[%clk
0:00:02.2]} 106... Nb6 {[%clk 0:00:04.4]} 107. Kc3 {[%clk 0:00:02.1]} 107... Bc1
{[%clk 0:00:03]} 108. Rf1 {[%clk 0:00:02.2]} 108... Na4+ {[%clk 0:00:02.9]} 109.
Kb3 {[%clk 0:00:02.3]} 109... Nc5+ {[%clk 0:00:03.5]} 110. Kc4 {[%clk
0:00:02.3]} 110... Ne4 {[%clk 0:00:03.7]} 111. Rh1 {[%clk 0:00:02.8]} 111...
Nd2+ {[%clk 0:00:03.9]} 112. Kd3 {[%clk 0:00:03.1]} 112... Nb3 {[%clk 0:00:04]}
113. Kc3 {[%clk 0:00:02.9]} 113... Na1 {[%clk 0:00:03.9]} 114. Rg1 {[%clk
0:00:03]} 114... Nc2 {[%clk 0:00:02.3]} 115. Rg2 {[%clk 0:00:03.2]} 115... Na3
{[%clk 0:00:03.2]} 116. Rh2 {[%clk 0:00:03.4]} 116... Nb5+ {[%clk 0:00:04.1]}
117. Kb3 {[%clk 0:00:03.8]} 117... Na3 {[%clk 0:00:05]} 118. Rh5 {[%clk
0:00:02.8]} 118... Nc2 {[%clk 0:00:05]} 119. Rh4 {[%clk 0:00:03.2]} 119... Na1+
{[%clk 0:00:04.8]} 120. Kc3 {[%clk 0:00:03]} 120... Bb2+ {[%clk 0:00:04.4]} 121.
Kd3 {[%clk 0:00:03.4]} 121... Ka2 {[%clk 0:00:04]} 122. Ra4+ {[%clk 0:00:03]}
122... Kb1 {[%clk 0:00:03.8]} 123. Rh4 {[%clk 0:00:03.9]} 123... Ka2 {[%clk
0:00:03.7]} 124. Kc4 {[%clk 0:00:04.4]} 124... Nc2 {[%clk 0:00:03.1]} 125. Rh1
{[%clk 0:00:05.3]} 125... Na3+ {[%clk 0:00:03]} 126. Kd3 {[%clk 0:00:05.6]}
126... Kb3 {[%clk 0:00:02.8]} 1/2-1/2

[Event "*** Titled Tuesday Blitz"]
[Site "Chess.com"]
[Date "2020.11.03"]
[Round "6"]
[White "Triumphmate"]
[Black "MatyChess1"]
[Result "0-1"]
[WhiteElo "2397"]
[BlackElo "2581"]
[TimeControl "180+1"]
[EndTime "11:05:20 PST"]
[Termination "MatyChess1 won by resignation"]

1. e4 {[%clk 0:03:00.9]} 1... c5 {[%clk 0:02:58.4]} 2. Nf3 {[%clk 0:02:55.8]}
2... g6 {[%clk 0:02:58.3]} 3. d4 {[%clk 0:02:55.9]} 3... cxd4 {[%clk 0:02:59.2]}
4. Nxd4 {[%clk 0:02:56.8]} 4... Nc6 {[%clk 0:02:58.8]} 5. f4 {[%clk 0:02:56.8]}
5... Bg7 {[%clk 0:02:55.7]} 6. Nf3 {[%clk 0:02:56.6]} 6... d6 {[%clk 0:02:47.8]}
7. Nc3 {[%clk 0:02:56.3]} 7... Nf6 {[%clk 0:02:47.2]} 8. Bd3 {[%clk 0:02:54.5]}
8... O-O {[%clk 0:02:46.7]} 9. O-O {[%clk 0:02:54.7]} 9... e5 {[%clk 0:02:45.8]}
10. Kh1 {[%clk 0:02:54.7]} 10... exf4 {[%clk 0:02:38.8]} 11. Bxf4 {[%clk
0:02:53.9]} 11... Be6 {[%clk 0:02:33.5]} 12. Qe1 {[%clk 0:02:51.5]} 12... Ng4
{[%clk 0:02:31.4]} 13. Qg3 {[%clk 0:02:43.6]} 13... Nge5 {[%clk 0:02:28.9]} 14.
Ng5 {[%clk 0:02:38.4]} 14... Rc8 {[%clk 0:02:21.8]} 15. Qh4 {[%clk 0:02:27.4]}
15... h6 {[%clk 0:02:15.7]} 16. Nxe6 {[%clk 0:02:25.1]} 16... Qxh4 {[%clk
0:02:12.5]} 17. Nxg7 {[%clk 0:02:19.7]} 0-1

[Event "*** Titled Tuesday Blitz"]
[Site "Chess.com"]
[Date "2020.11.03"]
[Round "6"]
[White "Bodnar_Mykola"]
[Black "Sacbutt"]
[Result "1-0"]
[WhiteElo "2411"]
[BlackElo "2299"]
[TimeControl "180+1"]
[EndTime "11:05:51 PST"]
[Termination "Bodnar_Mykola won by resignation"]

1. e4 {[%clk 0:03:00.9]} 1... c5 {[%clk 0:02:59.8]} 2. Nf3 {[%clk 0:03:00.9]}
2... d6 {[%clk 0:03:00.2]} 3. d4 {[%clk 0:03:01.6]} 3... cxd4 {[%clk 0:03:01.1]}
4. Nxd4 {[%clk 0:03:02.5]} 4... Nf6 {[%clk 0:03:01.5]} 5. Nc3 {[%clk 0:03:03]}
5... a6 {[%clk 0:03:02.1]} 6. Bg5 {[%clk 0:03:03.7]} 6... e6 {[%clk 0:03:02.2]}
7. f4 {[%clk 0:03:04.3]} 7... Be7 {[%clk 0:03:02.5]} 8. Qf3 {[%clk 0:03:04.6]}
8... Nbd7 {[%clk 0:03:03]} 9. O-O-O {[%clk 0:03:04.6]} 9... Qc7 {[%clk
0:03:03.5]} 10. g4 {[%clk 0:03:04.6]} 10... b5 {[%clk 0:03:04.1]} 11. Bxf6
{[%clk 0:02:59]} 11... Nxf6 {[%clk 0:03:03.6]} 12. g5 {[%clk 0:02:59.5]} 12...
Nd7 {[%clk 0:03:04.2]} 13. f5 {[%clk 0:03:00.1]} 13... Bxg5+ {[%clk 0:02:53.3]}
14. Kb1 {[%clk 0:03:00.3]} 14... Ne5 {[%clk 0:02:44.9]} 15. Qh5 {[%clk 0:02:58]}
15... Bh6 {[%clk 0:02:31.7]} 16. fxe6 {[%clk 0:02:56.6]} 16... Ra7 {[%clk
0:01:46.9]} 17. Nd5 {[%clk 0:02:55.3]} 17... Qd8 {[%clk 0:01:45]} 18. Bh3 {[%clk
0:02:45.3]} 18... O-O {[%clk 0:01:38.5]} 19. e7 {[%clk 0:02:44.2]} 19... Rxe7
{[%clk 0:01:37]} 20. Bxc8 {[%clk 0:02:44.2]} 1-0

[Event "*** Titled Tuesday Blitz"]
[Site "Chess.com"]
[Date "2020.11.03"]
[Round "6"]
[White "Bacyanide"]
[Black "picturesquecheck"]
[Result "1-0"]
[WhiteElo "2409"]
[BlackElo "2127"]
[TimeControl "180+1"]
[EndTime "11:05:59 PST"]
[Termination "Bacyanide won by resignation"]

1. d4 {[%clk 0:03:00.9]} 1... Nf6 {[%clk 0:02:59.3]} 2. Nf3 {[%clk 0:02:59.5]}
2... e6 {[%clk 0:02:58.6]} 3. Bf4 {[%clk 0:02:59.4]} 3... d5 {[%clk 0:02:57.3]}
4. e3 {[%clk 0:02:58.6]} 4... Bd6 {[%clk 0:02:57.5]} 5. Nbd2 {[%clk 0:02:55.5]}
5... O-O {[%clk 0:02:57]} 6. Bg3 {[%clk 0:02:54.4]} 6... c5 {[%clk 0:02:57.1]}
7. c3 {[%clk 0:02:53.6]} 7... b6 {[%clk 0:02:54.5]} 8. Bd3 {[%clk 0:02:53.3]}
8... Bb7 {[%clk 0:02:54.7]} 9. Qe2 {[%clk 0:02:53.1]} 9... Ne4 {[%clk
0:02:52.1]} 10. Ne5 {[%clk 0:01:54.4]} 10... Qc7 {[%clk 0:02:46]} 11. f3 {[%clk
0:01:47.5]} 11... Nxg3 {[%clk 0:02:41.7]} 12. hxg3 {[%clk 0:01:48.4]} 12... Bxe5
{[%clk 0:02:41.5]} 13. Bxh7+ {[%clk 0:01:47.6]} 13... Kh8 {[%clk 0:02:39.8]} 14.
f4 {[%clk 0:01:36.4]} 14... f5 {[%clk 0:02:17.8]} 15. Bg6+ {[%clk 0:01:32.1]}
1-0

[Event "*** Titled Tuesday Blitz"]
[Site "Chess.com"]
[Date "2020.11.03"]
[Round "6"]
[White "AurumO"]
[Black "LubovMarkelova"]
[Result "0-1"]
[WhiteElo "1963"]
[BlackElo "2235"]
[TimeControl "180+1"]
[EndTime "11:06:08 PST"]
[Termination "LubovMarkelova won by resignation"]

1. e4 {[%clk 0:02:55.6]} 1... e6 {[%clk 0:02:59.6]} 2. d4 {[%clk 0:02:49.2]}
2... d5 {[%clk 0:03:00.1]} 3. exd5 {[%clk 0:02:50.1]} 3... exd5 {[%clk
0:02:59.7]} 4. Bd3 {[%clk 0:02:49.2]} 4... Bd6 {[%clk 0:02:59.5]} 5. Nf3 {[%clk
0:02:49.8]} 5... Nc6 {[%clk 0:02:57.8]} 6. c3 {[%clk 0:02:48.9]} 6... Nge7
{[%clk 0:02:56.9]} 7. O-O {[%clk 0:02:47.6]} 7... Bg4 {[%clk 0:02:56.7]} 8. Re1
{[%clk 0:02:47.9]} 8... Qd7 {[%clk 0:02:56.6]} 9. a4 {[%clk 0:02:47.6]} 9... O-O
{[%clk 0:02:55.9]} 10. h3 {[%clk 0:02:38.1]} 10... Bf5 {[%clk 0:02:55.5]} 11.
Bf1 {[%clk 0:02:37.3]} 11... Rfe8 {[%clk 0:02:55]} 12. g3 {[%clk 0:02:32.3]}
12... Bxh3 {[%clk 0:02:53.5]} 13. Bg2 {[%clk 0:02:31.4]} 13... Bxg2 {[%clk
0:02:50.3]} 14. Kxg2 {[%clk 0:02:32.3]} 14... Qg4 {[%clk 0:02:44.6]} 15. b4
{[%clk 0:02:21.6]} 15... Nf5 {[%clk 0:02:42.1]} 16. Ne5 {[%clk 0:01:53.4]} 16...
Nxe5 {[%clk 0:02:34.9]} 17. dxe5 {[%clk 0:01:50.1]} 17... Nh4+ {[%clk
0:02:30.7]} 18. Kh2 {[%clk 0:01:23.1]} 18... Nf3+ {[%clk 0:02:30]} 19. Kg2
{[%clk 0:01:23]} 19... Nxe1+ {[%clk 0:02:29.1]} 0-1

[Event "*** Titled Tuesday Blitz"]
[Site "Chess.com"]
[Date "2020.11.03"]
[Round "6"]
[White "esskeettit"]
[Black "SHIVACalypso"]
[Result "1-0"]
[WhiteElo "2457"]
[BlackElo "2322"]
[TimeControl "180+1"]
[EndTime "11:06:27 PST"]
[Termination "esskeettit won by resignation"]

1. d4 {[%clk 0:03:00.9]} 1... e6 {[%clk 0:03:00]} 2. c4 {[%clk 0:03:00.3]} 2...
Nf6 {[%clk 0:03:00.4]} 3. Nc3 {[%clk 0:02:59]} 3... Bb4 {[%clk 0:03:00.4]} 4. e3
{[%clk 0:02:56.2]} 4... O-O {[%clk 0:02:59.8]} 5. Bd3 {[%clk 0:02:56.4]} 5... d5
{[%clk 0:02:58.9]} 6. Ne2 {[%clk 0:02:56.8]} 6... c5 {[%clk 0:02:56.9]} 7. cxd5
{[%clk 0:02:57.1]} 7... cxd4 {[%clk 0:02:55.8]} 8. exd4 {[%clk 0:02:58]} 8...
Nxd5 {[%clk 0:02:55.5]} 9. O-O {[%clk 0:02:57.9]} 9... Nc6 {[%clk 0:02:55.4]}
10. a3 {[%clk 0:02:57.8]} 10... Ba5 {[%clk 0:02:53.3]} 11. Nxd5 {[%clk
0:02:52.8]} 11... Qxd5 {[%clk 0:02:48.3]} 12. Be3 {[%clk 0:02:52]} 12... Bc7
{[%clk 0:02:45.2]} 13. Nc3 {[%clk 0:02:50.8]} 13... Qd6 {[%clk 0:02:42.6]} 14.
g3 {[%clk 0:02:43.6]} 14... a6 {[%clk 0:02:41.9]} 15. Qh5 {[%clk 0:02:31.6]}
15... g6 {[%clk 0:02:39.3]} 16. Qh6 {[%clk 0:02:29.9]} 16... e5 {[%clk
0:02:35.6]} 17. Ne4 {[%clk 0:02:28.4]} 17... Qe7 {[%clk 0:02:35.5]} 18. Ng5
{[%clk 0:02:28.1]} 18... f6 {[%clk 0:02:29.3]} 19. Bc4+ {[%clk 0:02:25.6]} 19...
Kh8 {[%clk 0:02:28.7]} 20. Nxh7 {[%clk 0:02:24.5]} 20... Qg7 {[%clk 0:02:21.9]}
21. Qxg7+ {[%clk 0:02:19.4]} 21... Kxg7 {[%clk 0:02:22.8]} 22. Nxf8 {[%clk
0:02:18.8]} 22... Kxf8 {[%clk 0:02:19.9]} 23. dxe5 {[%clk 0:02:13.7]} 23... Nxe5
{[%clk 0:02:20.8]} 24. Bd5 {[%clk 0:02:14.1]} 24... Ke7 {[%clk 0:02:08.6]} 25.
Rac1 {[%clk 0:02:11.9]} 25... Bd6 {[%clk 0:02:07.6]} 26. Rfe1 {[%clk 0:02:09.1]}
26... Be6 {[%clk 0:02:05]} 27. Bxe6 {[%clk 0:02:08.4]} 27... Nf3+ {[%clk
0:02:05.2]} 28. Kg2 {[%clk 0:01:56]} 28... Nxe1+ {[%clk 0:02:04.6]} 29. Rxe1
{[%clk 0:01:56.9]} 29... Kxe6 {[%clk 0:02:05.1]} 30. Bf4+ {[%clk 0:01:57.3]}
30... Kd7 {[%clk 0:01:58.5]} 31. Rd1 {[%clk 0:01:57.4]} 1-0

[Event "*** Titled Tuesday Blitz"]
[Site "Chess.com"]
[Date "2020.11.03"]
[Round "6"]
[White "PavelShkapenko"]
[Black "Heineccius"]
[Result "1-0"]
[WhiteElo "2643"]
[BlackElo "2537"]
[TimeControl "180+1"]
[EndTime "11:06:30 PST"]
[Termination "PavelShkapenko won by resignation"]

1. e4 {[%clk 0:03:00.9]} 1... c5 {[%clk 0:02:59.3]} 2. c3 {[%clk 0:03:00.2]}
2... Nf6 {[%clk 0:02:58.1]} 3. e5 {[%clk 0:03:00.4]} 3... Nd5 {[%clk 0:02:58.6]}
4. d4 {[%clk 0:03:01.3]} 4... cxd4 {[%clk 0:02:58.5]} 5. cxd4 {[%clk 0:03:02.2]}
5... d6 {[%clk 0:02:57.3]} 6. Nf3 {[%clk 0:03:01.8]} 6... e6 {[%clk 0:02:51.1]}
7. Nc3 {[%clk 0:02:59.9]} 7... Nxc3 {[%clk 0:02:47.9]} 8. bxc3 {[%clk
0:03:00.8]} 8... Nc6 {[%clk 0:02:44.5]} 9. Bd3 {[%clk 0:02:59.9]} 9... Be7
{[%clk 0:02:43.4]} 10. O-O {[%clk 0:02:59.3]} 10... O-O {[%clk 0:02:31.3]} 11.
Qc2 {[%clk 0:02:59]} 11... h6 {[%clk 0:02:25.1]} 12. Qe2 {[%clk 0:02:45.9]}
12... d5 {[%clk 0:01:52.3]} 13. Bc2 {[%clk 0:02:44.2]} 13... f5 {[%clk
0:01:48.4]} 14. exf6 {[%clk 0:02:43.5]} 14... Bxf6 {[%clk 0:01:48.6]} 15. Qd3
{[%clk 0:02:38.1]} 15... Ne7 {[%clk 0:01:47.3]} 16. Bxh6 {[%clk 0:02:28.4]}
16... Nf5 {[%clk 0:01:44]} 17. Bf4 {[%clk 0:02:28.1]} 17... Bd7 {[%clk
0:01:34.8]} 18. g4 {[%clk 0:02:16.4]} 18... Ne7 {[%clk 0:01:28.2]} 19. g5 {[%clk
0:02:03.1]} 19... Bxd4 {[%clk 0:01:26.4]} 20. Qxd4 {[%clk 0:02:01.3]} 1-0

[Event "*** Titled Tuesday Blitz"]
[Site "Chess.com"]
[Date "2020.11.03"]
[Round "6"]
[White "NikolaGry"]
[Black "SARGISMV"]
[Result "1-0"]
[WhiteElo "2631"]
[BlackElo "2475"]
[TimeControl "180+1"]
[EndTime "11:06:34 PST"]
[Termination "NikolaGry won by checkmate"]

1. b3 {[%clk 0:03:00.9]} 1... e5 {[%clk 0:02:59.4]} 2. Bb2 {[%clk 0:03:01]} 2...
Nc6 {[%clk 0:02:59.9]} 3. c4 {[%clk 0:03:01.2]} 3... f5 {[%clk 0:02:58]} 4. e3
{[%clk 0:03:00.8]} 4... Nf6 {[%clk 0:02:57.9]} 5. Nf3 {[%clk 0:02:59.4]} 5... e4
{[%clk 0:02:52.9]} 6. Nd4 {[%clk 0:02:59.5]} 6... Nxd4 {[%clk 0:02:50.1]} 7.
Bxd4 {[%clk 0:02:59]} 7... c5 {[%clk 0:02:50.8]} 8. Bxf6 {[%clk 0:02:49.3]} 8...
Qxf6 {[%clk 0:02:51.7]} 9. Nc3 {[%clk 0:02:49.4]} 9... d6 {[%clk 0:02:50.4]} 10.
Be2 {[%clk 0:02:37.1]} 10... Be6 {[%clk 0:02:49.5]} 11. O-O {[%clk 0:02:37]}
11... Be7 {[%clk 0:02:47.8]} 12. f3 {[%clk 0:02:37.1]} 12... exf3 {[%clk
0:02:45.6]} 13. Bxf3 {[%clk 0:02:36.8]} 13... O-O-O {[%clk 0:02:41.5]} 14. Nd5
{[%clk 0:02:25.8]} 14... Qf7 {[%clk 0:02:28.8]} 15. b4 {[%clk 0:02:25.2]} 15...
Bf6 {[%clk 0:02:26.5]} 16. Rb1 {[%clk 0:02:23.1]} 16... Rd7 {[%clk 0:02:22.6]}
17. Qa4 {[%clk 0:02:21.6]} 17... Kb8 {[%clk 0:02:10.5]} 18. Rb3 {[%clk
0:02:20.2]} 18... Be5 {[%clk 0:02:04.9]} 19. Rfb1 {[%clk 0:02:14.7]} 19... Rc8
{[%clk 0:02:01.1]} 20. Ra3 {[%clk 0:02:04.8]} 20... b6 {[%clk 0:01:46.9]} 21.
bxc5 {[%clk 0:01:52]} 21... dxc5 {[%clk 0:01:46.6]} 22. Rxb6+ {[%clk 0:01:44]}
22... axb6 {[%clk 0:01:47.5]} 23. Qa8# {[%clk 0:01:43]} 1-0

[Event "*** Titled Tuesday Blitz"]
[Site "Chess.com"]
[Date "2020.11.03"]
[Round "6"]
[White "crazy_but_lazy"]
[Black "davidkalashian"]
[Result "0-1"]
[WhiteElo "2455"]
[BlackElo "2606"]
[TimeControl "180+1"]
[EndTime "11:07:22 PST"]
[Termination "davidkalashian won by resignation"]

1. d4 {[%clk 0:03:00.2]} 1... Nf6 {[%clk 0:02:59.5]} 2. c4 {[%clk 0:03:00]} 2...
e6 {[%clk 0:02:59.6]} 3. Nc3 {[%clk 0:02:59.9]} 3... Bb4 {[%clk 0:02:57.5]} 4.
e3 {[%clk 0:02:58.8]} 4... c5 {[%clk 0:02:56.8]} 5. Nf3 {[%clk 0:02:58.9]} 5...
O-O {[%clk 0:02:56]} 6. Bd2 {[%clk 0:02:56]} 6... d5 {[%clk 0:02:54.4]} 7. cxd5
{[%clk 0:02:51.3]} 7... Nxd5 {[%clk 0:02:53.1]} 8. Rc1 {[%clk 0:02:50.7]} 8...
cxd4 {[%clk 0:02:51]} 9. Nxd4 {[%clk 0:02:45.2]} 9... Nxc3 {[%clk 0:02:43]} 10.
Bxc3 {[%clk 0:02:44.9]} 10... Bxc3+ {[%clk 0:02:42.8]} 11. Rxc3 {[%clk
0:02:45.2]} 11... e5 {[%clk 0:02:34.9]} 12. Nb5 {[%clk 0:02:38]} 12... Qxd1+
{[%clk 0:02:30.8]} 13. Kxd1 {[%clk 0:02:38.9]} 13... Nc6 {[%clk 0:02:31.2]} 14.
Nc7 {[%clk 0:02:39.3]} 14... Rb8 {[%clk 0:02:30.7]} 15. a3 {[%clk 0:02:13]}
15... Bf5 {[%clk 0:02:28.6]} 16. Bd3 {[%clk 0:01:58.3]} 16... Rfd8 {[%clk
0:02:05.7]} 17. Ke2 {[%clk 0:01:57.9]} 17... e4 {[%clk 0:02:01.6]} 18. Bc4
{[%clk 0:01:48.2]} 18... Ne5 {[%clk 0:02:00.3]} 19. f3 {[%clk 0:01:31.1]} 19...
exf3+ {[%clk 0:01:56.9]} 20. gxf3 {[%clk 0:01:31]} 20... Nxc4 {[%clk 0:01:56.5]}
21. e4 {[%clk 0:01:29.3]} 21... Rd2+ {[%clk 0:01:33.5]} 22. Kf1 {[%clk
0:01:21.7]} 22... Bh3+ {[%clk 0:01:31.2]} 23. Ke1 {[%clk 0:01:22]} 23... Rxb2
{[%clk 0:01:30.2]} 0-1